{"text_format":"3","workbook":"xlsx","n_sheets":3,"sheets":["Завдання","Подання місяця","Подання тижня"],"not_rendered":{"images":4,"defined_names":16},"read":"whole","date_system":"1900"}

{"sheet":"Завдання","index":0,"n_rows":15,"n_cols":3,"rows_kept":15}
[null,"ПОДАННЯ МІСЯЦЯ","ПОДАННЯ ТИЖНЯ"]
[null,"ЗАВДАННЯ"]
[null,"ОПИС","КІНЦЕВИЙ ТЕРМІН"]
[null,"Призначення 1",{"$f":"TODAY()","v":"2022-12-13"}]
[null,"Призначення 2",{"$f":"TODAY()+15","v":"2022-12-28"}]
[null,"Призначення 3",{"$f":"TODAY()+30","v":"2023-01-12"}]
[null,"Призначення 4",{"$f":"TODAY()+45","v":"2023-01-27"}]
[null,"Призначення 5",{"$f":"TODAY()+60","v":"2023-02-11"}]
[null,"Призначення 6",{"$f":"TODAY()+75","v":"2023-02-26"}]
[null,"Призначення 7",{"$f":"TODAY()+90","v":"2023-03-13"}]
[null,"Призначення 8",{"$f":"TODAY()+105","v":"2023-03-28"}]
[null,"Призначення 9",{"$f":"TODAY()+115","v":"2023-04-07"}]
[null,"Призначення 10",{"$f":"TODAY()+130","v":"2023-04-22"}]
[null,"Призначення 11",{"$f":"TODAY()+145","v":"2023-05-07"}]
[null,"Призначення 12",{"$f":"TODAY()+160","v":"2023-05-22"}]

{"sheet":"Подання місяця","index":1,"n_rows":17,"n_cols":8,"rows_kept":17}
[null,"ЗАВДАННЯ","ПОДАННЯ ТИЖНЯ"]
[null,"Виберіть місяць:","Введіть рік:"]
[null,{"$f":"TEXT(TODAY(),\"mmmm\")","v":"грудень"},{"$f":"YEAR(TODAY())","v":2022}]
[null," ПОДАННЯ МІСЯЦЯ"]
[null,"ПОНЕДІЛОК","ВІВТОРОК","СЕРЕДА","ЧЕТВЕР","П’ЯТНИЦЯ","СУБОТА","НЕДІЛЯ"]
[null,{"$f":"IF(WEEKDAY(DATEVALUE(\"1\"&МісМісяць&MoYear),2)=COLUMN(A$2),1,IF(LEN(A6)>0,A6+1,\"\"))","v":""},"","",1,2,3,4]
[null,{"$f":"IF(LEN(B6)=0,\"\",IF(COUNTIF(Завдання[КІНЦЕВИЙ ТЕРМІН],DATE(MoYear,МісНомМіс,B6))>0,\"Термін призначення надійшов!\",\"\"))","v":""},{"$f":"IF(LEN(C6)=0,\"\",IF(COUNTIF(Завдання[КІНЦЕВИЙ ТЕРМІН],DATE(MoYear,МісНомМіс,C6))>0,\"Термін призначення надійшов!\",\"\"))","v":""},{"$f":"IF(LEN(D6)=0,\"\",IF(COUNTIF(Завдання[КІНЦЕВИЙ ТЕРМІН],DATE(MoYear,МісНомМіс,D6))>0,\"Термін призначення надійшов!\",\"\"))","v":""},{"$f":"IF(LEN(E6)=0,\"\",IF(COUNTIF(Завдання[КІНЦЕВИЙ ТЕРМІН],DATE(MoYear,МісНомМіс,E6))>0,\"Термін призначення надійшов!\",\"\"))","v":""},{"$f":"IF(LEN(F6)=0,\"\",IF(COUNTIF(Завдання[КІНЦЕВИЙ ТЕРМІН],DATE(MoYear,МісНомМіс,F6))>0,\"Термін призначення надійшов!\",\"\"))","v":""},{"$f":"IF(LEN(G6)=0,\"\",IF(COUNTIF(Завдання[КІНЦЕВИЙ ТЕРМІН],DATE(MoYear,МісНомМіс,G6))>0,\"Термін призначення надійшов!\",\"\"))","v":""},{"$f":"IF(LEN(H6)=0,\"\",IF(COUNTIF(Завдання[КІНЦЕВИЙ ТЕРМІН],DATE(MoYear,МісНомМіс,H6))>0,\"Термін призначення надійшов!\",\"\"))","v":""}]
[null,{"$f":"IF(LEN(H6)>0,IF(H6=DAY(DATE(MoYear,МісНомМіс+1,0)),\"\",H6+1),\"\")","v":5},{"$f":"IF(LEN(B8)>0,IF(B8=DAY(DATE(MoYear,МісНомМіс+1,0)),\"\",B8+1),\"\")","v":6},7,8,9,10,11]
[null,{"$f":"IF(LEN(B8)=0,\"\",IF(COUNTIF(Завдання[КІНЦЕВИЙ ТЕРМІН],DATE(MoYear,МісНомМіс,B8))>0,\"Термін призначення надійшов!\",\"\"))","v":""},{"$f":"IF(LEN(C8)=0,\"\",IF(COUNTIF(Завдання[КІНЦЕВИЙ ТЕРМІН],DATE(MoYear,МісНомМіс,C8))>0,\"Термін призначення надійшов!\",\"\"))","v":""},{"$f":"IF(LEN(D8)=0,\"\",IF(COUNTIF(Завдання[КІНЦЕВИЙ ТЕРМІН],DATE(MoYear,МісНомМіс,D8))>0,\"Термін призначення надійшов!\",\"\"))","v":""},{"$f":"IF(LEN(E8)=0,\"\",IF(COUNTIF(Завдання[КІНЦЕВИЙ ТЕРМІН],DATE(MoYear,МісНомМіс,E8))>0,\"Термін призначення надійшов!\",\"\"))","v":""},{"$f":"IF(LEN(F8)=0,\"\",IF(COUNTIF(Завдання[КІНЦЕВИЙ ТЕРМІН],DATE(MoYear,МісНомМіс,F8))>0,\"Термін призначення надійшов!\",\"\"))","v":""},{"$f":"IF(LEN(G8)=0,\"\",IF(COUNTIF(Завдання[КІНЦЕВИЙ ТЕРМІН],DATE(MoYear,МісНомМіс,G8))>0,\"Термін призначення надійшов!\",\"\"))","v":""},{"$f":"IF(LEN(H8)=0,\"\",IF(COUNTIF(Завдання[КІНЦЕВИЙ ТЕРМІН],DATE(MoYear,МісНомМіс,H8))>0,\"Термін призначення надійшов!\",\"\"))","v":""}]
[null,{"$f":"IF(LEN(H8)>0,IF(H8=DAY(DATE(MoYear,МісНомМіс+1,0)),\"\",H8+1),\"\")","v":12},{"$f":"IF(LEN(B10)>0,IF(B10=DAY(DATE(MoYear,МісНомМіс+1,0)),\"\",B10+1),\"\")","v":13},14,15,16,17,18]
[null,{"$f":"IF(LEN(B10)=0,\"\",IF(COUNTIF(Завдання[КІНЦЕВИЙ ТЕРМІН],DATE(MoYear,МісНомМіс,B10))>0,\"Термін призначення надійшов!\",\"\"))","v":""},{"$f":"IF(LEN(C10)=0,\"\",IF(COUNTIF(Завдання[КІНЦЕВИЙ ТЕРМІН],DATE(MoYear,МісНомМіс,C10))>0,\"Термін призначення надійшов!\",\"\"))","v":"Термін призначення надійшов!"},{"$f":"IF(LEN(D10)=0,\"\",IF(COUNTIF(Завдання[КІНЦЕВИЙ ТЕРМІН],DATE(MoYear,МісНомМіс,D10))>0,\"Термін призначення надійшов!\",\"\"))","v":""},{"$f":"IF(LEN(E10)=0,\"\",IF(COUNTIF(Завдання[КІНЦЕВИЙ ТЕРМІН],DATE(MoYear,МісНомМіс,E10))>0,\"Термін призначення надійшов!\",\"\"))","v":""},{"$f":"IF(LEN(F10)=0,\"\",IF(COUNTIF(Завдання[КІНЦЕВИЙ ТЕРМІН],DATE(MoYear,МісНомМіс,F10))>0,\"Термін призначення надійшов!\",\"\"))","v":""},{"$f":"IF(LEN(G10)=0,\"\",IF(COUNTIF(Завдання[КІНЦЕВИЙ ТЕРМІН],DATE(MoYear,МісНомМіс,G10))>0,\"Термін призначення надійшов!\",\"\"))","v":""},{"$f":"IF(LEN(H10)=0,\"\",IF(COUNTIF(Завдання[КІНЦЕВИЙ ТЕРМІН],DATE(MoYear,МісНомМіс,H10))>0,\"Термін призначення надійшов!\",\"\"))","v":""}]
[null,{"$f":"IF(LEN(H10)>0,IF(H10=DAY(DATE(MoYear,МісНомМіс+1,0)),\"\",H10+1),\"\")","v":19},{"$f":"IF(LEN(B12)>0,IF(B12=DAY(DATE(MoYear,МісНомМіс+1,0)),\"\",B12+1),\"\")","v":20},21,22,23,24,25]
[null,{"$f":"IF(LEN(B12)=0,\"\",IF(COUNTIF(Завдання[КІНЦЕВИЙ ТЕРМІН],DATE(MoYear,МісНомМіс,B12))>0,\"Термін призначення надійшов!\",\"\"))","v":""},{"$f":"IF(LEN(C12)=0,\"\",IF(COUNTIF(Завдання[КІНЦЕВИЙ ТЕРМІН],DATE(MoYear,МісНомМіс,C12))>0,\"Термін призначення надійшов!\",\"\"))","v":""},{"$f":"IF(LEN(D12)=0,\"\",IF(COUNTIF(Завдання[КІНЦЕВИЙ ТЕРМІН],DATE(MoYear,МісНомМіс,D12))>0,\"Термін призначення надійшов!\",\"\"))","v":""},{"$f":"IF(LEN(E12)=0,\"\",IF(COUNTIF(Завдання[КІНЦЕВИЙ ТЕРМІН],DATE(MoYear,МісНомМіс,E12))>0,\"Термін призначення надійшов!\",\"\"))","v":""},{"$f":"IF(LEN(F12)=0,\"\",IF(COUNTIF(Завдання[КІНЦЕВИЙ ТЕРМІН],DATE(MoYear,МісНомМіс,F12))>0,\"Термін призначення надійшов!\",\"\"))","v":""},{"$f":"IF(LEN(G12)=0,\"\",IF(COUNTIF(Завдання[КІНЦЕВИЙ ТЕРМІН],DATE(MoYear,МісНомМіс,G12))>0,\"Термін призначення надійшов!\",\"\"))","v":""},{"$f":"IF(LEN(H12)=0,\"\",IF(COUNTIF(Завдання[КІНЦЕВИЙ ТЕРМІН],DATE(MoYear,МісНомМіс,H12))>0,\"Термін призначення надійшов!\",\"\"))","v":""}]
[null,{"$f":"IF(LEN(H12)>0,IF(H12=DAY(DATE(MoYear,МісНомМіс+1,0)),\"\",H12+1),\"\")","v":26},{"$f":"IF(LEN(B14)>0,IF(B14=DAY(DATE(MoYear,МісНомМіс+1,0)),\"\",B14+1),\"\")","v":27},28,29,30,31,""]
[null,{"$f":"IF(LEN(B14)=0,\"\",IF(COUNTIF(Завдання[КІНЦЕВИЙ ТЕРМІН],DATE(MoYear,МісНомМіс,B14))>0,\"Термін призначення надійшов!\",\"\"))","v":""},{"$f":"IF(LEN(C14)=0,\"\",IF(COUNTIF(Завдання[КІНЦЕВИЙ ТЕРМІН],DATE(MoYear,МісНомМіс,C14))>0,\"Термін призначення надійшов!\",\"\"))","v":""},{"$f":"IF(LEN(D14)=0,\"\",IF(COUNTIF(Завдання[КІНЦЕВИЙ ТЕРМІН],DATE(MoYear,МісНомМіс,D14))>0,\"Термін призначення надійшов!\",\"\"))","v":"Термін призначення надійшов!"},{"$f":"IF(LEN(E14)=0,\"\",IF(COUNTIF(Завдання[КІНЦЕВИЙ ТЕРМІН],DATE(MoYear,МісНомМіс,E14))>0,\"Термін призначення надійшов!\",\"\"))","v":""},{"$f":"IF(LEN(F14)=0,\"\",IF(COUNTIF(Завдання[КІНЦЕВИЙ ТЕРМІН],DATE(MoYear,МісНомМіс,F14))>0,\"Термін призначення надійшов!\",\"\"))","v":""},{"$f":"IF(LEN(G14)=0,\"\",IF(COUNTIF(Завдання[КІНЦЕВИЙ ТЕРМІН],DATE(MoYear,МісНомМіс,G14))>0,\"Термін призначення надійшов!\",\"\"))","v":""},{"$f":"IF(LEN(H14)=0,\"\",IF(COUNTIF(Завдання[КІНЦЕВИЙ ТЕРМІН],DATE(MoYear,МісНомМіс,H14))>0,\"Термін призначення надійшов!\",\"\"))","v":""}]
[null,{"$f":"IF(LEN(H14)>0,IF(H14=DAY(DATE(MoYear,МісНомМіс+1,0)),\"\",H14+1),\"\")","v":""},{"$f":"IF(LEN(B16)>0,IF(B16=DAY(DATE(MoYear,МісНомМіс+1,0)),\"\",B16+1),\"\")","v":""},"","","","",""]
[null,{"$f":"IF(LEN(B16)=0,\"\",IF(COUNTIF(Завдання[КІНЦЕВИЙ ТЕРМІН],DATE(MoYear,МісНомМіс,B16))>0,\"Термін призначення надійшов!\",\"\"))","v":""},{"$f":"IF(LEN(C16)=0,\"\",IF(COUNTIF(Завдання[КІНЦЕВИЙ ТЕРМІН],DATE(MoYear,МісНомМіс,C16))>0,\"Термін призначення надійшов!\",\"\"))","v":""},{"$f":"IF(LEN(D16)=0,\"\",IF(COUNTIF(Завдання[КІНЦЕВИЙ ТЕРМІН],DATE(MoYear,МісНомМіс,D16))>0,\"Термін призначення надійшов!\",\"\"))","v":""},{"$f":"IF(LEN(E16)=0,\"\",IF(COUNTIF(Завдання[КІНЦЕВИЙ ТЕРМІН],DATE(MoYear,МісНомМіс,E16))>0,\"Термін призначення надійшов!\",\"\"))","v":""},{"$f":"IF(LEN(F16)=0,\"\",IF(COUNTIF(Завдання[КІНЦЕВИЙ ТЕРМІН],DATE(MoYear,МісНомМіс,F16))>0,\"Термін призначення надійшов!\",\"\"))","v":""},{"$f":"IF(LEN(G16)=0,\"\",IF(COUNTIF(Завдання[КІНЦЕВИЙ ТЕРМІН],DATE(MoYear,МісНомМіс,G16))>0,\"Термін призначення надійшов!\",\"\"))","v":""},{"$f":"IF(LEN(H16)=0,\"\",IF(COUNTIF(Завдання[КІНЦЕВИЙ ТЕРМІН],DATE(MoYear,МісНомМіс,H16))>0,\"Термін призначення надійшов!\",\"\"))","v":""}]

{"sheet":"Подання тижня","index":2,"n_rows":17,"n_cols":8,"rows_kept":17}
[null,"ЗАВДАННЯ","ПОДАННЯ МІСЯЦЯ"]
[null,"Виберіть місяць:","Введіть рік:","Виберіть номер тижня:"]
[null,"вересень",{"$f":"YEAR(TODAY())","v":2022},"Тиждень 1"]
[null," ПОДАННЯ ТИЖНЯ"]
[null,{"$f":"IF(WEEKDAY(DATEVALUE(\"1 \"&ТижМісяць&ТижРік),2)=COLUMN(A$2),1,IF(LEN(A5)>0,A5+1,\"\"))","v":""},{"$f":"IF(WEEKDAY(DATEVALUE(\"1\"&ТижМісяць&ТижРік),2)=COLUMN(B$2),1,IF(LEN(B5)>0,B5+1,\"\"))","v":""},"",1,2,3,4]
[null,{"$f":"IF(LEN(H5)>0,IF(H5=ОстДеньМісяця_Тиж,\"\",H5+1),\"\")","v":5},{"$f":"IF(LEN(B6)>0,IF(B6=ОстДеньМісяця_Тиж,\"\",B6+1),\"\")","v":6},7,8,9,10,11]
[null,{"$f":"IF(LEN(H6)>0,IF(H6=ОстДеньМісяця_Тиж,\"\",H6+1),\"\")","v":12},13,14,15,16,17,18]
[null,{"$f":"IF(LEN(H7)>0,IF(H7=ОстДеньМісяця_Тиж,\"\",H7+1),\"\")","v":19},20,21,22,23,24,25]
[null,{"$f":"IF(LEN(H8)>0,IF(H8=ОстДеньМісяця_Тиж,\"\",H8+1),\"\")","v":26},27,28,29,30,"",""]
[null,{"$f":"IF(LEN(H9)>0,IF(H9=ОстДеньМісяця_Тиж,\"\",H9+1),\"\")","v":""},"","","","","",""]
[null,"ПОНЕДІЛОК","ВІВТОРОК","СЕРЕДА","ЧЕТВЕР","П’ЯТНИЦЯ","СУБОТА","НЕДІЛЯ"]
[null,{"$f":"IF(B14=\"\",IF(AND(ISNUMBER(A12),A12<ОстДеньМісяця_Тиж),A12+1,\"\"),IF(B14<=7,\"\",INDEX(ТижПодМіс,ТижТиждень,COLUMN(A$2))-7))","v":""},"","","","","",""]
[null,{"$f":"IF(LEN(B12)=0,\"\",IF(COUNTIF(Завдання[КІНЦЕВИЙ ТЕРМІН],DATE(ТижРік,ТижНомМіс,B12))>0,\"Термін призначення надійшов!\",\"\"))","v":""},{"$f":"IF(LEN(C12)=0,\"\",IF(COUNTIF(Завдання[КІНЦЕВИЙ ТЕРМІН],DATE(ТижРік,ТижНомМіс,C12))>0,\"Термін призначення надійшов!\",\"\"))","v":""},{"$f":"IF(LEN(D12)=0,\"\",IF(COUNTIF(Завдання[КІНЦЕВИЙ ТЕРМІН],DATE(ТижРік,ТижНомМіс,D12))>0,\"Термін призначення надійшов!\",\"\"))","v":""},{"$f":"IF(LEN(E12)=0,\"\",IF(COUNTIF(Завдання[КІНЦЕВИЙ ТЕРМІН],DATE(ТижРік,ТижНомМіс,E12))>0,\"Термін призначення надійшов!\",\"\"))","v":""},{"$f":"IF(LEN(F12)=0,\"\",IF(COUNTIF(Завдання[КІНЦЕВИЙ ТЕРМІН],DATE(ТижРік,ТижНомМіс,F12))>0,\"Термін призначення надійшов!\",\"\"))","v":""},{"$f":"IF(LEN(G12)=0,\"\",IF(COUNTIF(Завдання[КІНЦЕВИЙ ТЕРМІН],DATE(ТижРік,ТижНомМіс,G12))>0,\"Термін призначення надійшов!\",\"\"))","v":""},{"$f":"IF(LEN(H12)=0,\"\",IF(COUNTIF(Завдання[КІНЦЕВИЙ ТЕРМІН],DATE(ТижРік,ТижНомМіс,H12))>0,\"Термін призначення надійшов!\",\"\"))","v":""}]
[null,{"$f":"INDEX(ТижПодМіс,ТижТиждень,COLUMN(A$2))","v":""},{"$f":"INDEX(ТижПодМіс,ТижТиждень,COLUMN(B$2))","v":""},{"$f":"INDEX(ТижПодМіс,ТижТиждень,COLUMN(C$2))","v":""},{"$f":"INDEX(ТижПодМіс,ТижТиждень,COLUMN(D$2))","v":1},{"$f":"INDEX(ТижПодМіс,ТижТиждень,COLUMN(E$2))","v":2},{"$f":"INDEX(ТижПодМіс,ТижТиждень,COLUMN(F$2))","v":3},{"$f":"INDEX(ТижПодМіс,ТижТиждень,COLUMN(G$2))","v":4}]
[null,{"$f":"IF(LEN(B14)=0,\"\",IF(COUNTIF(Завдання[КІНЦЕВИЙ ТЕРМІН],DATE(ТижРік,ТижНомМіс,B14))>0,\"Термін призначення надійшов!\",\"\"))","v":""},{"$f":"IF(LEN(C14)=0,\"\",IF(COUNTIF(Завдання[КІНЦЕВИЙ ТЕРМІН],DATE(ТижРік,ТижНомМіс,C14))>0,\"Термін призначення надійшов!\",\"\"))","v":""},{"$f":"IF(LEN(D14)=0,\"\",IF(COUNTIF(Завдання[КІНЦЕВИЙ ТЕРМІН],DATE(ТижРік,ТижНомМіс,D14))>0,\"Термін призначення надійшов!\",\"\"))","v":""},{"$f":"IF(LEN(E14)=0,\"\",IF(COUNTIF(Завдання[КІНЦЕВИЙ ТЕРМІН],DATE(ТижРік,ТижНомМіс,E14))>0,\"Термін призначення надійшов!\",\"\"))","v":""},{"$f":"IF(LEN(F14)=0,\"\",IF(COUNTIF(Завдання[КІНЦЕВИЙ ТЕРМІН],DATE(ТижРік,ТижНомМіс,F14))>0,\"Термін призначення надійшов!\",\"\"))","v":""},{"$f":"IF(LEN(G14)=0,\"\",IF(COUNTIF(Завдання[КІНЦЕВИЙ ТЕРМІН],DATE(ТижРік,ТижНомМіс,G14))>0,\"Термін призначення надійшов!\",\"\"))","v":""},{"$f":"IF(LEN(H14)=0,\"\",IF(COUNTIF(Завдання[КІНЦЕВИЙ ТЕРМІН],DATE(ТижРік,ТижНомМіс,H14))>0,\"Термін призначення надійшов!\",\"\"))","v":""}]
[null,{"$f":"IFERROR(IF(B14=\"\",IF(AND(ISNUMBER(A16),A16<ОстДеньМісяця_Тиж),A16+1,$H$14+COLUMN(A$2)),IF(B14+7>ОстДеньМісяця_Тиж,\"\",INDEX(ТижПодМіс,ТижТиждень,COLUMN(A$2))+7)),\"\")","v":5},{"$f":"IFERROR(IF(C14=\"\",IF(AND(ISNUMBER(B16),B16<ОстДеньМісяця_Тиж),B16+1,$H$14+COLUMN(B$2)),IF(C14+7>ОстДеньМісяця_Тиж,\"\",INDEX(ТижПодМіс,ТижТиждень,COLUMN(B$2))+7)),\"\")","v":6},{"$f":"IFERROR(IF(D14=\"\",IF(AND(ISNUMBER(C16),C16<ОстДеньМісяця_Тиж),C16+1,$H$14+COLUMN(C$2)),IF(D14+7>ОстДеньМісяця_Тиж,\"\",INDEX(ТижПодМіс,ТижТиждень,COLUMN(C$2))+7)),\"\")","v":7},{"$f":"IFERROR(IF(E14=\"\",IF(AND(ISNUMBER(D16),D16<ОстДеньМісяця_Тиж),D16+1,$H$14+COLUMN(D$2)),IF(E14+7>ОстДеньМісяця_Тиж,\"\",INDEX(ТижПодМіс,ТижТиждень,COLUMN(D$2))+7)),\"\")","v":8},{"$f":"IFERROR(IF(F14=\"\",IF(AND(ISNUMBER(E16),E16<ОстДеньМісяця_Тиж),E16+1,$H$14+COLUMN(E$2)),IF(F14+7>ОстДеньМісяця_Тиж,\"\",INDEX(ТижПодМіс,ТижТиждень,COLUMN(E$2))+7)),\"\")","v":9},{"$f":"IFERROR(IF(G14=\"\",IF(AND(ISNUMBER(F16),F16<ОстДеньМісяця_Тиж),F16+1,$H$14+COLUMN(F$2)),IF(G14+7>ОстДеньМісяця_Тиж,\"\",INDEX(ТижПодМіс,ТижТиждень,COLUMN(F$2))+7)),\"\")","v":10},{"$f":"IFERROR(IF(H14=\"\",IF(AND(ISNUMBER(G16),G16<ОстДеньМісяця_Тиж),G16+1,$H$14+COLUMN(G$2)),IF(H14+7>ОстДеньМісяця_Тиж,\"\",INDEX(ТижПодМіс,ТижТиждень,COLUMN(G$2))+7)),\"\")","v":11}]
[null,{"$f":"IF(LEN(B16)=0,\"\",IF(COUNTIF(Завдання[КІНЦЕВИЙ ТЕРМІН],DATE(ТижРік,ТижНомМіс,B16))>0,\"Термін призначення надійшов!\",\"\"))","v":""},{"$f":"IF(LEN(C16)=0,\"\",IF(COUNTIF(Завдання[КІНЦЕВИЙ ТЕРМІН],DATE(ТижРік,ТижНомМіс,C16))>0,\"Термін призначення надійшов!\",\"\"))","v":""},{"$f":"IF(LEN(D16)=0,\"\",IF(COUNTIF(Завдання[КІНЦЕВИЙ ТЕРМІН],DATE(ТижРік,ТижНомМіс,D16))>0,\"Термін призначення надійшов!\",\"\"))","v":""},{"$f":"IF(LEN(E16)=0,\"\",IF(COUNTIF(Завдання[КІНЦЕВИЙ ТЕРМІН],DATE(ТижРік,ТижНомМіс,E16))>0,\"Термін призначення надійшов!\",\"\"))","v":""},{"$f":"IF(LEN(F16)=0,\"\",IF(COUNTIF(Завдання[КІНЦЕВИЙ ТЕРМІН],DATE(ТижРік,ТижНомМіс,F16))>0,\"Термін призначення надійшов!\",\"\"))","v":""},{"$f":"IF(LEN(G16)=0,\"\",IF(COUNTIF(Завдання[КІНЦЕВИЙ ТЕРМІН],DATE(ТижРік,ТижНомМіс,G16))>0,\"Термін призначення надійшов!\",\"\"))","v":""},{"$f":"IF(LEN(H16)=0,\"\",IF(COUNTIF(Завдання[КІНЦЕВИЙ ТЕРМІН],DATE(ТижРік,ТижНомМіс,H16))>0,\"Термін призначення надійшов!\",\"\"))","v":""}]